bitfinex-derivatives/quotes_ETHF0:USTF0_20250327
["timestamp","ask_amount","ask_price","bid_price","bid_amount"]
[1743033955159,5.6228,2010.0,2009.9,1.3007]
[1743033955654,6.65602052,2010.0,2009.9,1.3007]
[1743033955957,6.65602052,2010.0,2009.9,2.29565]
[1743033956163,5.6228,2010.0,2009.9,2.29565]
[1743033956661,5.6228,2010.0,2009.9,1.3007]
[1743033956662,3.42638696,2010.0,2009.9,1.3007]
[1743033956861,2.3928,2010.0,2009.9,2.29565]
[1743033957061,2.3928,2010.0,2009.9,1.3007]
[1743033957265,3.42638696,2010.0,2009.9,1.3007]
[1743033957763,3.42638696,2010.0,2009.9,2.29565]
[1743033957964,3.42638696,2010.0,2009.9,1.3007]
[1743033958362,2.3928,2010.0,2009.9,1.3007]
[1743033958762,3.42638696,2010.0,2009.9,2.29565]
[1743033958962,3.42638696,2010.0,2009.9,1.3007]
[1743033959359,3.42638696,2010.0,2009.9,2.29565]
[1743033959564,1.04374325,2010.0,2009.9,7.16390387]
[1743033959762,2.30082,2010.4,2010.3,0.99475]
[1743033959958,1.3061,2010.4,2010.3,0.99475]
[1743033960463,4.38283795,2010.6,2010.5,0.99465]
[1743033960670,5.37743795,2010.6,2010.5,0.99465]
[1743033961163,1.16030008,2010.7,2010.6,0.9946]
[1743033961369,1.16030008,2010.7,2010.6,4.2024]
[1743033961868,0.00746213,2010.7,2010.6,4.2024]
[1743033962463,0.99428,2011.3,2010.9,2.48613]
[1743033962668,2.40355,2011.2,2011.1,0.99436]
[1743033962872,0.99436,2011.1,2011.0,0.6701]
[1743033963055,1.4092,2011.1,2011.0,1.66451]
[1743033963263,2.40356,2011.1,2011.0,1.66451]
[1743033963460,1.4092,2011.1,2011.0,1.66451]
[1743033966370,0.00746213,2011.3,2011.2,0.99431]
[1743033966573,0.00746213,2011.3,2011.2,4.20211]
[1743033966773,0.00746213,2011.3,2011.2,6.70211]
[1743033968573,0.00746213,2011.3,2011.2,4.20211]
[1743033969072,1.43176213,2011.3,2011.2,4.20211]
[1743033973073,0.00746213,2011.3,2011.2,6.70211]
[1743033973279,7.42983,2011.8,2011.7,0.99406]
[1743033973875,4.20183,2011.8,2011.7,0.99406]
[1743033974086,3.2078,2011.8,2011.7,0.99406]
[1743033974269,4.6088,2011.8,2011.7,0.99406]
[1743033975778,1.401,2011.8,2011.7,0.99406]
[1743033975973,1.401,2011.8,2011.7,1.66276]
[1743033979272,1.401,2011.8,2011.7,0.99406]
[1743033980278,2.0563,2011.8,2011.7,0.99406]
[1743033980777,2.0563,2011.8,2011.7,2.17416]
[1743033981872,1.401,2011.8,2011.7,2.17416]
[1743033982078,0.00746213,2012.0,2011.9,0.99396]
[1743033982286,0.00746213,2012.0,2011.9,4.20176]
[1743033982783,0.00746213,2012.0,2011.9,5.38226]
[1743033982979,0.6486,2012.2,2012.1,0.99386]
[1743033983576,0.6915,2012.3,2012.2,0.99381]
[1743033984489,0.6915,2012.3,2012.2,2.33361]
[1743033985787,0.6915,2012.3,2012.2,0.99381]
[1743033986179,1.9967,2012.3,2012.2,2.33361]
[1743033989081,1.3052,2012.3,2012.2,5.54141]
[1743033989283,1.3052,2012.3,2012.2,6.24761]
[1743033989484,0.70236213,2012.5,2012.4,0.99371]
[1743033989788,1.69602213,2012.5,2012.4,0.99371]
[1743033993187,0.70236213,2012.5,2012.4,0.99371]
[1743033993491,0.00746213,2012.5,2012.4,0.99371]
[1743033993680,1.38626213,2012.5,2012.4,1.65691]
[1743033994184,1.38626213,2012.5,2012.4,0.99371]
[1743033995687,2.37992213,2012.5,2012.4,0.99371]
[1743033996190,1.38626213,2012.5,2012.4,0.99371]
[1743033996791,2.37992213,2012.5,2012.4,0.99371]
[1743033998692,1.38626213,2012.5,2012.4,0.99371]
[1743033999390,2.37992213,2012.5,2012.4,0.99371]
[1743034012898,1.10441788,2012.7,2012.6,0.99362]
[1743034013102,1.3134,2012.9,2012.8,0.99352]
[1743034013694,1.3134,2012.9,2012.8,1.71042]
[1743034013895,1.7068011,2012.9,2012.8,1.71042]
[1743034014090,1.7068011,2012.9,2012.8,0.99352]
[1743034014290,1.7068011,2012.9,2012.7,1.4274]
[1743034014503,1.3134,2012.8,2012.7,2.42097]
[1743034016998,2.0234,2012.8,2012.7,2.42097]
[1743034017700,1.3134,2012.8,2012.7,2.42097]
[1743034018003,0.99345,2013.0,2012.9,0.99347]
[1743034018200,1.7075,2013.1,2013.0,0.99342]
[1743034018698,0.99345,2013.0,2012.9,0.99343]
[1743034019299,2.40355,2013.0,2012.9,0.99343]
[1743034022006,0.99347,2012.9,2012.8,2.36878]
[1743034022302,2.30347,2012.9,2012.8,2.36882]
[1743034022901,2.30347,2012.9,2012.8,1.3753]
[1743034023100,0.99352,2012.8,2012.7,0.99352]
[1743034023303,2.97112,2012.8,2012.7,2.31252]
[1743034024694,2.97112,2012.8,2012.7,0.99352]
[1743034024902,3.37802316,2012.8,2012.7,2.38642]
[1743034025307,0.99365,2012.6,2012.5,0.99362]
[1743034025505,0.99365,2012.6,2012.5,2.38652]
[1743034026309,1.40055316,2012.6,2012.5,2.38652]
[1743034027611,2.75905316,2012.6,2012.5,2.38652]
[1743034034619,1.76540316,2012.6,2012.5,2.38652]
[1743034034918,2.75902316,2012.6,2012.5,2.38652]
[1743034035515,2.75902316,2012.6,2012.5,0.99362]
[1743034036218,0.99371,2012.5,2012.4,0.99368]
[1743034036422,0.99371,2012.4,2012.3,5.60865381]
[1743034036616,0.99371,2012.4,2012.3,6.60241381]
[1743034036822,2.31631,2012.4,2012.3,6.60241381]
[1743034037123,3.94403594,2012.4,2012.3,6.60241381]
[1743034038328,2.72321316,2012.4,2012.3,6.60241381]
[1743034038819,0.40690316,2012.4,2012.3,6.60241381]
[1743034039026,1.72950316,2012.4,2012.3,6.60241381]
[1743034039422,1.72950316,2012.4,2012.3,7.98171381]
[1743034041327,1.3226,2012.4,2012.3,7.98171381]
[1743034043729,2.31631,2012.4,2012.3,7.98171381]
[1743034044422,1.3226,2012.4,2012.3,7.98171381]
[1743034044825,2.31631,2012.4,2012.3,7.98171381]
[1743034045420,1.3226,2012.4,2012.3,7.98171381]
[1743034045618,2.31631,2012.4,2012.3,7.98171381]
[1743034045837,2.31631,2012.4,2012.3,5.60865381]
[1743034046125,0.99386,2012.1,2012.0,0.00746213]
[1743034046318,4.20166,2012.1,2012.0,0.00746213]
[1743034046928,6.61722444,2012.1,2012.0,0.00746213]
[1743034047126,5.60856,2012.1,2012.0,0.00746213]
[1743034052129,5.60856,2012.1,2012.0,1.00137213]
[1743034052332,5.60856,2012.1,2012.0,0.00746213]
[1743034057721,5.86642744,2012.1,2012.0,0.00746213]
[1743034058233,2.65862744,2012.1,2012.0,0.00746213]
[1743034058532,5.86642744,2012.1,2012.0,0.00746213]
[1743034067929,9.37400741,2012.1,2012.0,0.00746213]
[1743034068131,0.99416,2011.5,2011.4,3.60319142]
[1743034068428,0.99416,2011.5,2011.4,1.3552]
[1743034068632,0.99421,2011.4,2011.3,0.99422]
[1743034068831,2.42161,2011.4,2011.3,2.34946]
[1743034069839,2.67947744,2011.4,2011.3,2.34946]
[1743034080049,0.99431,2011.2,2011.1,1.68169213]
[1743034080253,0.99431,2011.2,2011.1,3.10239213]
[1743034080853,4.47717744,2011.2,2011.1,0.00746213]
[1743034081151,5.18997744,2011.2,2011.1,0.00746213]
[1743034081546,6.49367744,2011.2,2011.1,1.42816213]
[1743034082646,3.26867744,2011.2,2011.1,2.42252213]
[1743034082848,0.25786744,2011.2,2011.1,2.42252213]
[1743034084547,0.99421,2011.5,2011.4,0.99421]
[1743034087861,0.00746213,2011.6,2011.5,0.99416]
[1743034088063,0.00746213,2011.6,2011.5,2.30926]
[1743034089364,1.41206213,2011.6,2011.5,2.30926]
[1743034089665,2.40617213,2011.6,2011.5,2.30926]
[1743034089961,1.41206213,2011.6,2011.5,2.30926]
[1743034093867,2.40617213,2011.6,2011.5,2.30926]
[1743034094166,1.41206213,2011.6,2011.5,2.30926]
[1743034094867,2.40617213,2011.6,2011.5,2.30926]
[1743034095560,1.41206213,2011.6,2011.5,2.30926]
[1743034095761,2.09506213,2011.6,2011.5,2.30926]
[1743034096066,3.08917213,2011.6,2011.5,2.30926]
[1743034097562,1.41206213,2011.6,2011.5,2.30926]
[1743034100370,2.40617213,2011.6,2011.5,1.3151]
[1743034100667,8.83897213,2011.6,2011.5,0.2356]
[1743034100967,8.83897213,2011.6,2011.1,2.61644355]
[1743034100968,0.99431,2011.2,2011.1,1.00178213]
[1743034101570,0.99428,2011.3,2011.2,0.99428]
[1743034101870,0.99421,2011.4,2011.3,0.99426]
[1743034102570,0.99428,2011.3,2011.2,0.99427]
[1743034103266,2.13762096,2011.4,2011.3,0.99423]
[1743034103665,0.99428,2011.3,2011.2,0.99427]
[1743034104270,1.69986,2011.4,2011.3,0.99426]
[1743034104467,1.69981,2011.4,2011.3,0.99426]
[1743034105270,0.99431,2011.2,2011.1,1.00179213]
[1743034105473,0.99431,2011.2,2011.1,0.00746213]
[1743034105666,0.99431,2011.2,2011.1,1.00182213]
[1743034106373,0.99431,2011.2,2011.1,0.00746213]
[1743034107275,4.21931,2011.2,2011.1,0.00746213]
[1743034107467,5.22861522,2011.2,2011.1,0.00746213]
[1743034107776,6.37253096,2011.2,2011.1,0.00746213]
[1743034111470,2.4859,2011.1,2010.5,0.99464]
[1743034111777,0.99459,2010.7,2010.6,0.9946]
[1743034111977,0.99461,2010.6,2010.5,0.99461]
[1743034112476,0.99457,2010.7,2010.6,0.99457]
[1743034112773,0.99463,2010.6,2010.4,3.8611]
[1743034112976,0.99463,2010.6,2010.5,0.99463]
[1743034113173,0.99459,2010.7,2010.6,0.99459]
[1743034113369,0.99461,2010.6,2010.5,0.99461]
[1743034113969,0.9946,2010.7,2010.6,0.99458]
[1743034118075,0.99465,2010.6,2010.5,0.99461]
[1743034123075,0.99465,2010.6,2010.5,2.37761]
[1743034123477,2.2927,2010.7,2010.6,0.9946]
[1743034130992,0.99465,2010.6,2010.5,0.99462]
[1743034131183,0.99465,2010.6,2010.4,0.6533]
[1743034131184,0.99465,2010.5,2010.4,0.6533]
[1743034131380,0.99465,2010.5,2010.4,1.648]
[1743034131586,2.30865,2010.5,2010.4,1.648]
[1743034131885,2.30865,2010.5,2010.4,3.0491]
[1743034132190,1.314,2010.5,2010.4,3.0491]
[1743034138390,2.30865,2010.5,2010.4,3.0491]
[1743034139185,1.314,2010.5,2010.4,3.0491]
[1743034139394,2.30865,2010.5,2010.4,3.0491]
[1743034141988,2.30865,2010.5,2010.4,1.648]
[1743034142984,2.30865,2010.5,2010.4,0.6533]
[1743034143189,3.32033332,2010.5,2010.4,0.6533]
[1743034143384,1.14662635,2010.6,2010.4,1.648]
[1743034143588,0.9943,2011.3,2010.5,2.60898142]
[1743034143787,2.00535496,2011.5,2011.4,0.99421]
[1743034143989,0.99425,2011.4,2011.3,1.3976]
[1743034144283,0.99425,2011.4,2011.3,2.39186]
[1743034144690,1.01116496,2011.5,2011.3,1.3976]
[1743034144990,0.99421,2011.4,2011.3,2.39181]
[1743034146095,2.00535496,2011.5,2011.4,0.99421]
[1743034146399,0.00746213,2011.6,2011.5,0.99416]
[1743034146592,3.2078,2012.0,2011.9,0.99396]
[1743034146796,4.20175,2012.0,2011.9,0.99396]
[1743034147094,3.49258914,2012.3,2011.7,2.48506]
[1743034147095,5.69224,2012.3,2011.7,3.78086]
[1743034147301,5.69224,2012.3,2012.1,0.99386]
[1743034147302,2.40385,2012.2,2012.1,0.99386]
[1743034148591,0.99386,2012.1,2012.0,2.29747]
[1743034148795,1.3939,2012.1,2012.0,2.29751]
[1743034149995,3.2078,2012.3,2012.2,0.99381]
[1743034150302,4.6017,2012.3,2012.2,0.99381]
[1743034150491,0.00746213,2012.4,2012.3,0.99376]
[1743034154299,1.33936213,2012.4,2012.3,0.99376]
[1743034159900,0.99376,2012.3,2012.2,5.62838]
[1743034160198,0.99381,2012.2,2012.1,2.60898142]
[1743034160401,2.41971,2012.2,2012.1,2.60898142]
[1743034160595,2.41971,2012.2,2012.1,3.60284142]
[1743034160795,1.4259,2012.2,2012.1,3.60284142]
[1743034160995,2.41971,2012.2,2012.1,3.60284142]
[1743034162206,2.41971,2012.2,2012.1,0.99386]
[1743034162703,0.00746213,2012.4,2012.3,0.99376]
[1743034162905,1.42096213,2012.4,2012.3,0.99376]
[1743034165808,2.41467213,2012.4,2012.3,0.99376]
[1743034166713,1.42096213,2012.4,2012.3,0.99376]
[1743034167010,2.41467213,2012.4,2012.3,0.99376]
[1743034167804,2.41467213,2012.4,2012.0,41.79387]
[1743034167805,0.99386,2012.1,2012.0,41.79387]
[1743034168011,0.99386,2012.1,2012.0,0.99387]
[1743034168210,2.41095,2012.2,2012.1,0.99386]
[1743034168513,0.99391,2012.1,2012.0,0.99387]
[1743034168715,2.41101,2012.1,2012.0,0.99387]
[1743034169206,0.99391,2012.0,2011.9,45.00918213]
[1743034169410,2.42181,2012.0,2011.9,3.21526213]
[1743034169620,2.42181,2012.0,2011.9,1.00142213]
[1743034169912,2.42181,2012.0,2011.9,0.00746213]
[1743034175806,2.42181,2012.0,2011.9,1.00142213]
[1743034176003,2.42181,2012.0,2011.9,0.00746213]
[1743034177317,2.42181,2012.0,2011.9,1.00142213]
[1743034177616,2.42181,2012.0,2011.9,0.00746213]
[1743034180220,2.42181,2012.0,2011.9,1.00142213]
[1743034180421,2.42181,2012.0,2011.9,0.00746213]
[1743034180627,2.42181,2012.0,2011.9,1.00142213]
[1743034182522,2.42181,2012.0,2011.9,0.00746213]
[1743034182822,2.42181,2012.0,2011.9,1.00142213]
[1743034183024,2.42181,2012.0,2011.9,2.33322213]
[1743034183726,2.42181,2012.0,2011.9,1.00142213]
[1743034186026,1.4279,2012.0,2011.9,1.00142213]
[1743034186221,4.2228036,2012.4,2012.3,0.99376]
[1743034186420,4.63896213,2012.4,2012.3,0.99376]
[1743034186627,1.43116213,2012.4,2012.3,0.99376]
[1743034186828,2.42487213,2012.4,2012.3,0.99376]
[1743034190126,1.43116213,2012.4,2012.3,0.99376]
[1743034190430,2.42487213,2012.4,2012.3,0.99376]
[1743034196932,2.42487213,2012.4,2012.3,2.31216]
[1743034203950,1.43116213,2012.4,2012.3,2.31216]
[1743034205150,2.42487213,2012.4,2012.3,2.31216]
[1743034205351,1.43116213,2012.4,2012.3,2.31216]
[1743034209054,0.00746213,2012.4,2012.3,0.99376]
[1743034209859,0.00746213,2012.4,2012.3,2.30166]
[1743034218763,0.00746213,2012.4,2012.3,0.99376]
[1743034219866,1.42646213,2012.4,2012.3,2.42766]
[1743034220666,2.42017213,2012.4,2012.3,0.99376]
[1743034221253,2.42017213,2012.4,2012.3,2.42766]
[1743034221558,1.42646213,2012.4,2012.3,2.42766]
[1743034223167,2.42017213,2012.4,2012.3,0.99376]
[1743034224961,0.99386,2012.1,2012.0,2.60898142]
[1743034225164,0.99391,2012.0,2011.9,0.00746213]
[1743034225464,3.07591,2012.0,2011.9,1.00142213]
[1743034236873,2.082,2012.0,2011.9,1.00142213]
[1743034237268,3.07591,2012.0,2011.9,1.00142213]
[1743034238167,2.082,2012.0,2011.9,1.00142213]
[1743034238564,1.00120213,2012.4,2012.1,2.48462]
[1743034238765,1.00120213,2012.4,2012.3,0.99376]
[1743034238766,1.69150213,2012.4,2012.3,0.99376]
[1743034238966,0.69776213,2012.4,2012.3,0.99376]
[1743034239165,0.00746213,2012.4,2012.3,0.99376]
[1743034239770,1.35326213,2012.4,2012.3,0.99376]
[1743034241577,2.34697213,2012.4,2012.3,0.99376]
[1743034243780,1.35326213,2012.4,2012.3,0.99376]
[1743034243982,2.34697213,2012.4,2012.3,0.99376]
[1743034245382,1.35326213,2012.4,2012.3,0.99376]
[1743034245882,2.34697213,2012.4,2012.3,0.99376]
[1743034246084,1.35326213,2012.4,2012.3,0.99376]
[1743034246380,2.34697213,2012.4,2012.3,0.99376]
[1743034246781,1.35326213,2012.4,2012.3,0.99376]
[1743034247177,2.34697213,2012.4,2012.3,0.99376]
[1743034247585,1.35326213,2012.4,2012.3,0.99376]
[1743034247785,2.34697213,2012.4,2012.3,0.99376]
[1743034247981,1.35326213,2012.4,2012.3,0.99376]
[1743034248284,2.34697213,2012.4,2012.3,0.99376]
[1743034248485,2.34697213,2012.4,2012.3,1.64446]
[1743034248688,1.35326213,2012.4,2012.3,1.64446]
[1743034252485,1.35326213,2012.4,2012.3,2.97906]
[1743034252686,2.34697213,2012.4,2012.3,2.97906]
[1743034252889,1.35326213,2012.4,2012.3,2.97906]
[1743034253983,2.34697213,2012.4,2012.3,2.97906]
[1743034254193,2.34697213,2012.4,2012.3,0.99376]
[1743034254491,1.35326213,2012.4,2012.3,0.99376]
[1743034254889,2.34697213,2012.4,2012.3,2.35606]
[1743034255393,1.35326213,2012.4,2012.3,2.35606]
[1743034255592,2.34697213,2012.4,2012.3,2.35606]
[1743034256991,2.34697213,2012.4,2012.3,0.99376]
[1743034257288,0.99381,2012.2,2012.1,4.20161]
[1743034258183,2.33231,2012.3,2012.2,0.99381]
[1743034260394,2.33231,2012.3,2012.2,2.30141]
[1743034260796,2.33231,2012.3,2012.2,1.3076]
[1743034260995,2.33231,2012.3,2012.2,2.30141]
[1743034263197,1.3385,2012.3,2012.2,2.30141]
[1743034263400,1.12494496,2012.4,2012.3,0.99376]
[1743034263591,0.00746213,2012.4,2012.3,2.42856]
[1743034263797,0.00746213,2012.4,2012.3,3.13276]
[1743034271993,1.11748283,2012.7,2012.3,2.139]
[1743034272299,1e-08,2013.0,2012.9,0.99347]
[1743034272799,3.2078,2013.2,2013.1,0.99337]
[1743034272997,0.99326,2013.4,2013.3,0.99323]
[1743034274492,7.093,2013.5,2013.2,2.40958]
[1743034274493,0.99327,2013.3,2013.2,2.40958]
[1743034274999,0.99327,2013.3,2013.2,0.99328]
[1743034275496,0.711,2013.4,2013.1,0.99333]
[1743034275497,0.99336,2013.2,2013.1,0.99333]
[1743034275798,0.99342,2013.0,2012.9,1.00090213]
[1743034275990,0.6797,2013.1,2013.0,0.99342]
[1743034276502,3.22,2013.2,2013.1,0.99337]
[1743034276705,0.6797,2013.3,2013.2,0.99332]
[1743034278703,0.6797,2013.3,2013.1,2.36343]
[1743034278904,0.6797,2013.3,2013.2,0.99332]
[1743034279090,2.0213,2013.3,2013.2,0.99332]
[1743034279605,2.0213,2013.3,2013.1,2.36343]
[1743034279805,1.3416,2013.2,2013.1,2.36343]
[1743034282495,3.2078,2013.5,2013.4,0.99322]
[1743034283008,7.41986,2013.8,2013.3,3.83068]
[1743034283199,7.41986,2013.8,2013.4,3.83065]
[1743034283396,6.4268,2013.8,2013.5,1.3476]
[1743034283699,7.41986,2013.8,2013.5,1.3476]
[1743034283895,3.2078,2013.8,2013.7,0.99307]
[1743034284907,3.2078,2013.8,2013.7,1.4161]
[1743034285097,3.2078,2013.8,2013.7,2.40917]
[1743034285298,3.2078,2013.8,2013.7,1.4161]
[1743034285504,4.20082,2013.8,2013.7,1.4161]
[1743034285707,3.2078,2013.8,2013.6,0.6945]
[1743034285907,2.349,2013.7,2013.5,2.40924]
[1743034286203,2.0625,2013.6,2013.5,1.4161]
[1743034286410,3.05562,2013.6,2013.4,0.99319]
[1743034286608,1.4325,2013.5,2013.4,0.99319]
[1743034286808,1.4325,2013.5,2013.4,2.36729]
[1743034287602,2.42567,2013.5,2013.4,1.3741]
[1743034288100,0.99322,2013.4,2013.3,3.2078]
[1743034288312,0.99327,2013.3,2013.2,3.07361]
[1743034289109,0.99327,2013.3,2013.2,1.3741]
[1743034290701,0.99337,2013.1,2013.0,7.19578142]
[1743034291304,0.99342,2013.0,2012.9,0.00746213]
[1743034292009,2.34992,2013.0,2012.9,0.00746213]
[1743034294116,0.99366,2012.5,2012.4,8.75629]
[1743034294410,0.99366,2012.5,2012.4,6.92571]
[1743034295810,0.99366,2012.5,2012.4,5.932]
[1743034296010,0.99366,2012.5,2012.4,6.92571]
[1743034296209,2.33585,2012.6,2012.5,0.99366]
[1743034296410,2.33585,2012.6,2012.5,2.34906]
[1743034297212,2.33585,2012.6,2012.5,1.3554]
[1743034297410,2.33585,2012.6,2012.5,2.34906]
[1743034297611,2.33585,2012.6,2012.5,1.3554]
[1743034297914,2.33585,2012.6,2012.5,2.34906]
[1743034301310,0.00746213,2012.7,2012.6,0.99362]
[1743034301619,0.00746213,2012.7,2012.6,2.33542]
[1743034307419,1.00103213,2012.7,2012.6,1.3418]
[1743034307619,2.35423213,2012.7,2012.6,2.33542]
[1743034307924,3.05943213,2012.7,2012.6,2.33542]
[1743034308124,2.35423213,2012.7,2012.6,2.33542]
[1743034310113,1.36066213,2012.7,2012.6,2.33542]
[1743034310320,1.00103213,2012.7,2012.6,2.33542]
[1743034315424,1.00103213,2012.7,2012.6,0.99362]
[1743034315626,2.42303213,2012.7,2012.6,0.99362]
[1743034317127,0.99362,2012.6,2012.5,2.40753]
[1743034317325,2.37992,2012.6,2012.5,2.40753]
[1743034318022,0.99366,2012.5,2012.4,5.53828]
[1743034318221,3.05226,2012.5,2012.4,6.93568]
[1743034323435,3.05226,2012.5,2012.4,4.20148]
[1743034324026,3.05226,2012.5,2012.4,5.53848]
[1743034329632,3.05226,2012.5,2012.4,3.2078]
[1743034329933,6.27026,2012.5,2012.4,3.2078]
[1743034330129,6.92846,2012.5,2012.4,3.2078]
[1743034331933,0.99376,2012.3,2012.2,1.00127213]
[1743034334244,2.40283,2012.4,2012.3,0.99376]
[1743034334939,0.99376,2012.3,2012.2,2.42084213]
[1743034335141,2.41676,2012.3,2012.2,0.00746213]
[1743034335644,2.41676,2012.3,2012.2,1.35046213]
[1743034336240,2.41676,2012.3,2012.2,2.34427213]
[1743034336838,0.99396,2011.9,2011.8,0.99401]
[1743034337740,0.99401,2011.8,2011.7,41.794]
[1743034337942,2.41701,2011.8,2011.7,41.794]
[1743034338142,2.41701,2011.8,2011.7,40.8]
[1743034338844,2.41701,2011.8,2011.7,0.99406]
[1743034347144,0.99406,2011.7,2011.6,2.38818]
[1743034347441,2.32626,2011.7,2011.6,1.3941]
[1743034347752,2.32626,2011.7,2011.6,2.38821]
[1743034349351,2.32626,2011.7,2011.6,3.70661]
[1743034350050,2.32626,2011.7,2011.6,2.7125]
[1743034350255,2.32626,2011.7,2011.5,45.00938213]
[1743034350256,0.99411,2011.6,2011.5,0.00746213]
[1743034350450,3.11491,2011.6,2011.5,0.00746213]
[1743034350656,3.82531,2011.6,2011.5,0.00746213]
[1743034353744,2.4854,2011.5,2011.0,0.6677]
[1743034354053,0.99441,2011.0,2010.9,0.6887]
[1743034354355,0.99441,2011.0,2010.9,3.08036]
[1743034354555,2.35251,2011.0,2010.9,3.08036]
[1743034354761,2.35251,2011.0,2010.9,2.0859]
[1743034355558,2.35251,2011.0,2010.7,0.00746213]
[1743034355559,0.9945,2010.8,2010.7,0.00746213]
[1743034355757,0.9945,2010.8,2010.7,3.11171213]
[1743034356058,0.9945,2010.8,2010.7,2.11716213]
[1743034357053,0.9945,2010.8,2010.7,3.11171213]
[1743034357551,2.35259,2010.9,2010.8,0.9945]
[1743034357856,2.35259,2010.9,2010.8,1.4283]
[1743034360453,0.9945,2010.8,2010.7,1.71449213]
[1743034360657,2.4213,2010.8,2010.7,1.71449213]
[1743034361358,1.4268,2010.8,2010.7,1.71449213]
[1743034361550,2.4213,2010.8,2010.7,1.71449213]
[1743034361750,2.4213,2010.8,2010.7,3.07519213]
[1743034363857,0.99443,2011.0,2010.9,0.99441]
[1743034364059,2.31143,2011.0,2010.9,0.99441]
[1743034364256,2.31143,2011.0,2010.9,2.34871]
[1743034366050,2.31143,2011.0,2010.9,2.34876]
[1743034368057,2.31143,2011.0,2010.9,1.3543]
[1743034368575,0.9945,2010.8,2010.7,1.71449213]
[1743034369076,0.9945,2010.8,2010.7,1.71446213]
[1743034369664,0.9945,2010.8,2010.7,1.71447213]
[1743034369869,0.9945,2010.8,2010.7,3.11397213]
[1743034370677,2.4118,2010.9,2010.8,0.9945]
[1743034370866,2.4118,2010.9,2010.8,2.394]
[1743034374783,2.4118,2010.9,2010.8,1.3995]
[1743034375367,2.4118,2010.9,2010.8,2.394]
[1743034375571,2.4118,2010.9,2010.8,1.3995]
[1743034375969,0.9945,2010.8,2010.7,1.71449213]
[1743034376173,2.3243,2010.8,2010.7,3.03919213]
[1743034376373,2.3243,2010.8,2010.7,2.04466213]
[1743034376574,2.48647,2010.7,2010.2,2.48699]
[1743034376779,0.99465,2010.5,2010.4,2.3194]
[1743034377381,2.32445,2010.5,2010.4,2.3194]
[1743034381479,1.3298,2010.5,2010.4,2.3194]
[1743034381669,0.6907,2010.7,2010.4,5.5272]
[1743034381670,0.99458,2010.7,2010.4,5.5272]
[1743034381875,2.29768,2010.7,2010.6,0.99455]
[1743034382169,1.3031,2010.7,2010.6,0.99455]
[1743034382368,1.3031,2010.7,2010.6,3.10375]
[1743034383382,5.70602,2011.0,2010.9,0.99442]
[1743034383383,0.99445,2011.0,2010.9,0.99442]
[1743034383680,0.9945,2010.9,2010.8,0.99447]
[1743034383979,0.9945,2010.9,2010.8,2.95477]
[1743034385679,2.29755,2011.0,2010.9,0.99446]
[1743034385979,2.29755,2011.0,2010.9,2.29336]
[1743034386986,3.39190509,2011.0,2010.9,2.29336]
[1743034389880,3.39190509,2011.0,2010.9,1.2989]
[1743034390085,4.40258101,2011.0,2010.9,2.29336]
[1743034390386,3.39190509,2011.0,2010.9,2.29336]
[1743034390586,4.40257812,2011.0,2010.9,2.29336]
[1743034390886,3.39190509,2011.0,2010.9,2.29336]
[1743034391084,4.4025838,2011.0,2010.9,2.29336]
[1743034392688,4.4025838,2011.0,2010.9,1.2989]
[1743034392887,4.4025838,2011.0,2010.9,2.29336]
[1743034393582,3.4081338,2011.0,2010.7,0.99453]
[1743034393790,0.99455,2010.8,2010.7,2.29433]
[1743034394189,2.2971,2010.9,2010.8,0.9945]
[1743034394490,2.2971,2010.9,2010.8,2.2943]
[1743034396792,1.3026,2010.9,2010.8,2.2943]
[1743034397089,2.29706,2010.9,2010.8,2.2943]
[1743034397289,2.29706,2010.9,2010.8,2.9425]
[1743034401693,1.3026,2010.9,2010.8,2.9425]
[1743034401894,2.29706,2010.9,2010.8,2.9425]
[1743034403687,2.29706,2010.9,2010.8,1.948]
[1743034404196,0.99455,2010.7,2010.6,0.6536]
[1743034404594,2.96245,2010.7,2010.6,1.6482]
[1743034405600,2.96245,2010.7,2010.6,0.6536]
[1743034406002,0.9946,2010.6,2010.5,2.43312]
[1743034406195,2.4179,2010.6,2010.5,2.43312]
[1743034406594,2.4179,2010.6,2010.5,1.4385]
[1743034406791,0.9947,2010.4,2010.3,6.81149142]
[1743034407102,0.9947,2010.4,2010.3,8.12669142]
[1743034407501,1.4233,2010.4,2010.3,8.12669142]
[1743034408399,2.418,2010.4,2010.3,5.51771]
[1743034411804,0.99469,2010.5,2010.4,0.9947]
[1743034412105,0.99469,2010.5,2010.4,2.4139]
[1743034413297,0.99469,2010.5,2010.4,1.4192]
[1743034413702,0.99469,2010.5,2010.4,2.4139]
[1743034415801,2.38555,2010.6,2010.5,0.99465]
[1743034416003,2.38555,2010.6,2010.5,2.42955]
[1743034416606,3.2078,2010.8,2010.7,0.99455]
[1743034416806,4.6159,2010.8,2010.7,0.99455]
[1743034419209,4.6159,2010.8,2010.6,1.4349]
[1743034419410,1.3029,2010.7,2010.6,2.4295]
[1743034419799,2.29745,2010.7,2010.6,2.4295]
[1743034420003,3.01505,2010.7,2010.6,2.4295]
[1743034425404,3.01505,2010.7,2010.6,1.4349]
[1743034425804,3.01505,2010.7,2010.6,2.4295]
[1743034426610,2.0205,2010.7,2010.4,0.7081]
[1743034426816,1.71219,2010.7,2010.6,2.409]
[1743034429318,1.71219,2010.7,2010.6,0.9946]
[1743034429514,1.71219,2010.7,2010.6,2.409]
[1743034429719,0.7176,2010.7,2010.4,0.7081]
[1743034430021,0.99465,2010.5,2010.4,3.06909]
[1743034430422,0.99465,2010.5,2010.4,3.0691]
[1743034431019,2.08864154,2010.6,2010.5,0.99465]
[1743034431218,0.99465,2010.6,2010.5,2.36095]
[1743034431824,0.99465,2010.6,2010.5,1.3663]
[1743034432017,0.99465,2010.6,2010.5,2.36095]
[1743034434117,0.99465,2010.6,2010.5,1.3663]